[Event "*** Titled Tuesday 3|2 Blitz"]
[Site "Chess.com"]
[Date "2015.08.04"]
[Round "5"]
[White "josiwales"]
[Black "ChadaevNikolay"]
[Result "0-1"]
[WhiteElo "2060"]
[BlackElo "2598"]
[TimeControl "180+2"]
[EndTime "12:34:50 PDT"]
[Termination "ChadaevNikolay won by checkmate"]

1. e4 {[%clk 0:02:59.1]} 1... c5 {[%clk 0:03:00]} 2. Nc3 {[%clk 0:02:58.9]} 2...
g6 {[%clk 0:03:00.8]} 3. g3 {[%clk 0:02:55.7]} 3... Bg7 {[%clk 0:03:01.5]} 4.
Bg2 {[%clk 0:02:57.6]} 4... d6 {[%clk 0:03:02.1]} 5. d3 {[%clk 0:02:58.6]} 5...
Nc6 {[%clk 0:03:03.1]} 6. Be3 {[%clk 0:02:59.6]} 6... e6 {[%clk 0:03:01.6]} 7.
Qd2 {[%clk 0:02:55.2]} 7... Nd4 {[%clk 0:03:02.2]} 8. Nd1 {[%clk 0:02:55.7]}
8... Ne7 {[%clk 0:02:56.4]} 9. c3 {[%clk 0:02:56.3]} 9... Ndc6 {[%clk
0:02:57.3]} 10. Bh6 {[%clk 0:02:57.6]} 10... Bxh6 {[%clk 0:02:55.5]} 11. Qxh6
{[%clk 0:02:57]} 11... e5 {[%clk 0:02:54.1]} 12. Ne2 {[%clk 0:02:55.1]} 12...
Be6 {[%clk 0:02:54.7]} 13. Ne3 {[%clk 0:02:46.8]} 13... Qd7 {[%clk 0:02:52.4]}
14. Nd5 {[%clk 0:02:46.3]} 14... O-O-O {[%clk 0:02:51.2]} 15. O-O-O {[%clk
0:02:38.6]} 15... Kb8 {[%clk 0:02:51.2]} 16. f4 {[%clk 0:02:35]} 16... Rc8
{[%clk 0:02:31.7]} 17. Rhf1 {[%clk 0:02:31.5]} 17... f5 {[%clk 0:02:31.5]} 18.
fxe5 {[%clk 0:02:27]} 18... Nxe5 {[%clk 0:02:26.3]} 19. Nef4 {[%clk 0:02:24.2]}
19... Bxd5 {[%clk 0:02:26.5]} 20. exd5 {[%clk 0:02:18.5]} 20... Rcg8 {[%clk
0:02:25.2]} 21. Rfe1 {[%clk 0:02:12.5]} 21... Nf7 {[%clk 0:02:22.6]} 22. Qh4
{[%clk 0:01:58.8]} 22... g5 {[%clk 0:02:14.2]} 23. Qh5 {[%clk 0:01:58.9]} 23...
Ne5 {[%clk 0:02:08.1]} 24. Ne6 {[%clk 0:01:54.2]} 24... f4 {[%clk 0:01:57.3]}
25. Nxc5 {[%clk 0:01:50.7]} 25... Qb5 {[%clk 0:01:49]} 26. Nb3 {[%clk
0:01:35.9]} 26... Nf5 {[%clk 0:01:34.2]} 27. c4 {[%clk 0:01:26.4]} 27... Qa4
{[%clk 0:01:33]} 28. gxf4 {[%clk 0:01:15.7]} 28... Qxa2 {[%clk 0:01:27.2]} 29.
fxe5 {[%clk 0:01:13.1]} 29... Qxb3 {[%clk 0:01:28.1]} 30. exd6 {[%clk
0:01:08.8]} 30... Nd4 {[%clk 0:01:28.8]} 31. Rd2 {[%clk 0:01:01.8]} 31... Qa2
{[%clk 0:01:25.4]} 32. Rde2 {[%clk 0:00:29.3]} 32... Qa1+ {[%clk 0:01:18.7]} 33.
Kd2 {[%clk 0:00:29]} 33... Qxb2+ {[%clk 0:01:19.4]} 34. Ke3 {[%clk 0:00:29.4]}
34... Qb6 {[%clk 0:01:08.9]} 35. Kd2 {[%clk 0:00:17]} 35... Qb2+ {[%clk
0:01:07.7]} 36. Ke3 {[%clk 0:00:17.2]} 36... Nxe2 {[%clk 0:01:08.9]} 37. Rxe2
{[%clk 0:00:18]} 37... Qe5+ {[%clk 0:01:09.4]} 38. Kf2 {[%clk 0:00:18.6]} 38...
Rf8+ {[%clk 0:01:08.3]} 39. Ke1 {[%clk 0:00:18.6]} 39... Qxd6 {[%clk 0:01:08.2]}
40. Re6 {[%clk 0:00:14.5]} 40... Qb4+ {[%clk 0:01:08.1]} 41. Ke2 {[%clk
0:00:15.4]} 41... Qb2+ {[%clk 0:01:09.2]} 42. Ke3 {[%clk 0:00:14.9]} 42... Qf2+
{[%clk 0:01:07.7]} 43. Ke4 {[%clk 0:00:14.7]} 43... Qf4# {[%clk 0:01:09.1]} 0-1

[Event "*** Titled Tuesday 3|2 Blitz"]
[Site "Chess.com"]
[Date "2015.08.04"]
[Round "5"]
[White "stefanodinn"]
[Black "ajkom197"]
[Result "1/2-1/2"]
[WhiteElo "2145"]
[BlackElo "2256"]
[TimeControl "180+2"]
[EndTime "12:34:58 PDT"]
[Termination "Game drawn by repetition"]

1. e4 {[%clk 0:03:01.9]} 1... c6 {[%clk 0:03:01]} 2. d4 {[%clk 0:03:01.1]} 2...
d5 {[%clk 0:03:02]} 3. Nd2 {[%clk 0:03:01.9]} 3... dxe4 {[%clk 0:03:03]} 4. Nxe4
{[%clk 0:03:02.8]} 4... Nd7 {[%clk 0:03:04.6]} 5. Nf3 {[%clk 0:02:47.5]} 5...
Ngf6 {[%clk 0:03:05.1]} 6. Nxf6+ {[%clk 0:02:48.4]} 6... Nxf6 {[%clk 0:03:07]}
7. Bc4 {[%clk 0:02:49.1]} 7... Bf5 {[%clk 0:03:02.9]} 8. c3 {[%clk 0:02:45.7]}
8... e6 {[%clk 0:03:03.8]} 9. Bg5 {[%clk 0:02:40.5]} 9... Be7 {[%clk 0:03:04.4]}
10. h3 {[%clk 0:02:31.9]} 10... h6 {[%clk 0:03:05.4]} 11. Bh4 {[%clk 0:02:30.2]}
11... O-O {[%clk 0:02:56.8]} 12. O-O {[%clk 0:02:30.1]} 12... Nd5 {[%clk
0:02:42.1]} 13. Bg3 {[%clk 0:02:18.8]} 13... Bd6 {[%clk 0:02:38.7]} 14. Bxd6
{[%clk 0:01:53.8]} 14... Qxd6 {[%clk 0:02:39.1]} 15. Ne5 {[%clk 0:01:53.9]}
15... Ne7 {[%clk 0:02:34.3]} 16. Qf3 {[%clk 0:01:50.7]} 16... Ng6 {[%clk
0:02:29.4]} 17. Rfe1 {[%clk 0:01:47.3]} 17... c5 {[%clk 0:02:10.1]} 18. g4
{[%clk 0:01:41.5]} 18... cxd4 {[%clk 0:01:56.8]} 19. Nxf7 {[%clk 0:01:03.7]}
19... Rxf7 {[%clk 0:01:55.9]} 20. gxf5 {[%clk 0:01:04.5]} 20... Ne5 {[%clk
0:01:19.8]} 21. Qe2 {[%clk 0:00:30.9]} 21... Nxc4 {[%clk 0:01:07.3]} 22. Qxc4
{[%clk 0:00:31.2]} 22... Rxf5 {[%clk 0:01:00.3]} 23. Rxe6 {[%clk 0:00:26.7]}
23... Qd5 {[%clk 0:01:00.3]} 24. Qxd5 {[%clk 0:00:25.9]} 24... Rxd5 {[%clk
0:01:02.2]} 25. cxd4 {[%clk 0:00:26.6]} 25... Rxd4 {[%clk 0:01:00.3]} 26. Re7
{[%clk 0:00:26.1]} 26... Rc8 {[%clk 0:00:36]} 27. Rxb7 {[%clk 0:00:23.6]} 27...
Rc2 {[%clk 0:00:36.1]} 28. Re1 {[%clk 0:00:16.4]} 28... Rdd2 {[%clk 0:00:19.5]}
29. Ree7 {[%clk 0:00:16.9]} 29... Rxf2 {[%clk 0:00:20.4]} 30. Rxg7+ {[%clk
0:00:17.8]} 30... Kf8 {[%clk 0:00:21.1]} 31. Rgc7 {[%clk 0:00:14.8]} 31... Rg2+
{[%clk 0:00:21.9]} 32. Kf1 {[%clk 0:00:15.6]} 32... Rgf2+ {[%clk 0:00:23.4]} 33.
Ke1 {[%clk 0:00:16.1]} 33... Rfe2+ {[%clk 0:00:24.5]} 34. Kf1 {[%clk 0:00:14.7]}
34... Rf2+ {[%clk 0:00:20.1]} 35. Ke1 {[%clk 0:00:15.6]} 35... Rfe2+ {[%clk
0:00:20.6]} 36. Kf1 {[%clk 0:00:16.6]} 36... Rf2+ {[%clk 0:00:21.9]} 1/2-1/2

[Event "*** Titled Tuesday 3|2 Blitz"]
[Site "Chess.com"]
[Date "2015.08.04"]
[Round "5"]
[White "Fh2411"]
[Black "NMJeevanK"]
[Result "1-0"]
[WhiteElo "2180"]
[BlackElo "2049"]
[TimeControl "180+2"]
[EndTime "12:35:09 PDT"]
[Termination "Fh2411 won by checkmate"]

1. d4 {[%clk 0:03:01.9]} 1... d5 {[%clk 0:03:00.2]} 2. c4 {[%clk 0:03:00.6]}
2... c6 {[%clk 0:03:01.3]} 3. cxd5 {[%clk 0:03:00.4]} 3... cxd5 {[%clk
0:03:01.8]} 4. Nc3 {[%clk 0:03:00.9]} 4... Nc6 {[%clk 0:03:02.5]} 5. Bf4 {[%clk
0:03:00.5]} 5... e6 {[%clk 0:03:02.1]} 6. e3 {[%clk 0:02:57.8]} 6... Nf6 {[%clk
0:03:02.6]} 7. Nf3 {[%clk 0:02:58]} 7... a6 {[%clk 0:03:01.6]} 8. Rc1 {[%clk
0:02:57.1]} 8... Bd6 {[%clk 0:03:01.6]} 9. Bg5 {[%clk 0:02:55.7]} 9... h6 {[%clk
0:03:02.2]} 10. Bh4 {[%clk 0:02:56.2]} 10... Qb6 {[%clk 0:02:49]} 11. Bxf6
{[%clk 0:02:45.2]} 11... gxf6 {[%clk 0:02:47.8]} 12. Qd2 {[%clk 0:02:46.3]}
12... Bd7 {[%clk 0:02:45.7]} 13. Bd3 {[%clk 0:02:45.2]} 13... Rg8 {[%clk
0:02:38.4]} 14. O-O {[%clk 0:02:44.2]} 14... f5 {[%clk 0:02:36.2]} 15. Na4
{[%clk 0:02:32.9]} 15... Qd8 {[%clk 0:02:36.8]} 16. Nc5 {[%clk 0:02:31.1]} 16...
Rb8 {[%clk 0:02:14.3]} 17. a3 {[%clk 0:02:23.7]} 17... Qf6 {[%clk 0:02:07.5]}
18. b4 {[%clk 0:02:09.4]} 18... f4 {[%clk 0:01:50.6]} 19. Nxd7 {[%clk
0:01:54.6]} 19... Kxd7 {[%clk 0:01:44.6]} 20. b5 {[%clk 0:01:54.5]} 20... axb5
{[%clk 0:01:23.4]} 21. Bxb5 {[%clk 0:01:53.6]} 21... Qg6 {[%clk 0:00:58.8]} 22.
g3 {[%clk 0:01:38.4]} 22... Qe4 {[%clk 0:00:55.3]} 23. Qe2 {[%clk 0:01:16]}
23... Ke7 {[%clk 0:00:37.6]} 24. Bd3 {[%clk 0:01:13]} 24... fxg3 {[%clk
0:00:15.4]} 25. Bxe4 {[%clk 0:01:11.5]} 25... dxe4 {[%clk 0:00:16.1]} 26. Nd2
{[%clk 0:00:59.2]} 26... gxh2+ {[%clk 0:00:13]} 27. Kh1 {[%clk 0:01:00]} 27...
f5 {[%clk 0:00:13.8]} 28. f4 {[%clk 0:00:55.4]} 28... Rg3 {[%clk 0:00:10.8]} 29.
Nc4 {[%clk 0:00:51.1]} 29... Rbg8 {[%clk 0:00:10.1]} 30. Qxh2 {[%clk 0:00:47.5]}
30... R3g4 {[%clk 0:00:06.5]} 31. Rg1 {[%clk 0:00:43.2]} 31... h5 {[%clk
0:00:07.3]} 32. Qxh5 {[%clk 0:00:37.8]} 32... R4g7 {[%clk 0:00:06.2]} 33. Rxg7+
{[%clk 0:00:34.7]} 33... Rxg7 {[%clk 0:00:08.1]} 34. Rg1 {[%clk 0:00:35.6]}
34... Rxg1+ {[%clk 0:00:08.3]} 35. Kxg1 {[%clk 0:00:36]} 35... Bxf4 {[%clk
0:00:08.7]} 36. exf4 {[%clk 0:00:35.2]} 36... Nxd4 {[%clk 0:00:10.6]} 37. Qh7+
{[%clk 0:00:35.8]} 37... Ke8 {[%clk 0:00:08.3]} 38. Ne5 {[%clk 0:00:36.6]} 38...
Ne2+ {[%clk 0:00:06.3]} 39. Kf2 {[%clk 0:00:36.4]} 39... Nxf4 {[%clk 0:00:07.9]}
40. Qf7+ {[%clk 0:00:35.5]} 40... Kd8 {[%clk 0:00:08.4]} 41. Qd7# {[%clk
0:00:37]} 1-0

[Event "*** Titled Tuesday 3|2 Blitz"]
[Site "Chess.com"]
[Date "2015.08.04"]
[Round "5"]
[White "talaicito"]
[Black "Just-Live-Simply"]
[Result "1-0"]
[WhiteElo "2066"]
[BlackElo "2005"]
[TimeControl "180+2"]
[EndTime "12:35:11 PDT"]
[Termination "talaicito won on time"]

1. e4 {[%clk 0:03:01.9]} 1... e6 {[%clk 0:03:00.5]} 2. d4 {[%clk 0:03:02.2]}
2... d5 {[%clk 0:03:00.5]} 3. e5 {[%clk 0:03:03.4]} 3... c5 {[%clk 0:03:01.1]}
4. c3 {[%clk 0:03:04.2]} 4... Qb6 {[%clk 0:02:59.8]} 5. Nf3 {[%clk 0:03:05.1]}
5... Nc6 {[%clk 0:03:01.4]} 6. Bd3 {[%clk 0:03:06]} 6... Bd7 {[%clk 0:03:01.3]}
7. O-O {[%clk 0:03:06.9]} 7... cxd4 {[%clk 0:02:57.5]} 8. cxd4 {[%clk
0:03:07.3]} 8... Nxd4 {[%clk 0:02:56.8]} 9. Nbd2 {[%clk 0:03:08.9]} 9... Nxf3+
{[%clk 0:02:49.2]} 10. Nxf3 {[%clk 0:03:09.3]} 10... Ne7 {[%clk 0:02:37.7]} 11.
Be3 {[%clk 0:03:05.8]} 11... Qd8 {[%clk 0:02:31]} 12. b4 {[%clk 0:02:51.1]}
12... Ng6 {[%clk 0:02:22.7]} 13. Qd2 {[%clk 0:02:21.2]} 13... Be7 {[%clk
0:02:20.1]} 14. g3 {[%clk 0:02:19.9]} 14... O-O {[%clk 0:02:15.9]} 15. h4 {[%clk
0:02:19.8]} 15... Re8 {[%clk 0:01:44.7]} 16. h5 {[%clk 0:02:10.3]} 16... Nf8
{[%clk 0:01:44.9]} 17. Rfc1 {[%clk 0:02:09.6]} 17... a6 {[%clk 0:01:23.7]} 18.
a4 {[%clk 0:02:00.1]} 18... Rc8 {[%clk 0:01:12.6]} 19. b5 {[%clk 0:01:38.3]}
19... Rxc1+ {[%clk 0:01:08]} 20. Rxc1 {[%clk 0:01:36.5]} 20... axb5 {[%clk
0:01:04.6]} 21. axb5 {[%clk 0:01:36.8]} 21... Qa8 {[%clk 0:01:05.4]} 22. h6
{[%clk 0:00:57]} 22... g6 {[%clk 0:01:02.8]} 23. Bg5 {[%clk 0:00:56.7]} 23...
Qa3 {[%clk 0:00:42.3]} 24. Bxe7 {[%clk 0:00:43.9]} 24... Qxe7 {[%clk 0:00:42.6]}
25. Rc7 {[%clk 0:00:43.3]} 25... b6 {[%clk 0:00:28.3]} 26. Qc3 {[%clk
0:00:30.2]} 26... Ra8 {[%clk 0:00:22.2]} 27. Qd4 {[%clk 0:00:10.9]} 27... Ra3
{[%clk 0:00:18.2]} 28. Be2 {[%clk 0:00:09.5]} 28... Qd8 {[%clk 0:00:13.3]} 29.
Qxb6 {[%clk 0:00:09.7]} 29... Rc3 {[%clk 0:00:10.7]} 30. Rb7 {[%clk 0:00:08.4]}
30... Qxb6 {[%clk 0:00:08.3]} 31. Rxb6 {[%clk 0:00:09.5]} 31... Rc7 {[%clk
0:00:09.3]} 32. Rb8 {[%clk 0:00:10.1]} 32... Rc1+ {[%clk 0:00:06.9]} 33. Kg2
{[%clk 0:00:10.3]} 33... Rb1 {[%clk 0:00:08.5]} 34. b6 {[%clk 0:00:10.1]} 34...
Bc6 {[%clk 0:00:06.8]} 35. Nd4 {[%clk 0:00:11.1]} 35... Ba4 {[%clk 0:00:03]} 36.
b7 {[%clk 0:00:11.5]} 1-0

[Event "*** Titled Tuesday 3|2 Blitz"]
[Site "Chess.com"]
[Date "2015.08.04"]
[Round "5"]
[White "myaccount88"]
[Black "Carolina-moon"]
[Result "1-0"]
[WhiteElo "2177"]
[BlackElo "1982"]
[TimeControl "180+2"]
[EndTime "12:35:40 PDT"]
[Termination "myaccount88 won on time"]

1. e4 {[%clk 0:03:01.9]} 1... c5 {[%clk 0:03:00.3]} 2. Nf3 {[%clk 0:03:01.7]}
2... d6 {[%clk 0:03:01.8]} 3. d4 {[%clk 0:03:03.1]} 3... cxd4 {[%clk 0:03:03.7]}
4. Nxd4 {[%clk 0:03:04.8]} 4... Nf6 {[%clk 0:03:05.2]} 5. Nc3 {[%clk 0:03:06.3]}
5... a6 {[%clk 0:03:06.7]} 6. g3 {[%clk 0:03:06.2]} 6... e5 {[%clk 0:03:05.4]}
7. Nb3 {[%clk 0:03:05.2]} 7... Be7 {[%clk 0:02:42.6]} 8. Bg2 {[%clk 0:03:05.6]}
8... O-O {[%clk 0:02:32.6]} 9. O-O {[%clk 0:03:06.1]} 9... b5 {[%clk 0:02:30.8]}
10. a4 {[%clk 0:03:05.1]} 10... b4 {[%clk 0:02:31.2]} 11. Na2 {[%clk 0:03:04.8]}
11... a5 {[%clk 0:02:13.5]} 12. c3 {[%clk 0:03:04.8]} 12... Bb7 {[%clk
0:02:07.2]} 13. Re1 {[%clk 0:03:03.4]} 13... Nc6 {[%clk 0:02:02.3]} 14. cxb4
{[%clk 0:03:02.5]} 14... axb4 {[%clk 0:01:59]} 15. Nd2 {[%clk 0:02:57]} 15...
Nd4 {[%clk 0:01:53.4]} 16. Nc4 {[%clk 0:02:47]} 16... Nxe4 {[%clk 0:01:29.7]}
17. Bxe4 {[%clk 0:02:41.4]} 17... Bxe4 {[%clk 0:01:30.6]} 18. Rxe4 {[%clk
0:02:41.7]} 18... d5 {[%clk 0:01:32.1]} 19. Rxd4 {[%clk 0:02:40.7]} 19... exd4
{[%clk 0:01:32.1]} 20. Ne5 {[%clk 0:02:34.5]} 20... Qc7 {[%clk 0:01:14.9]} 21.
Nd3 {[%clk 0:02:29.4]} 21... Rab8 {[%clk 0:01:04.9]} 22. Bf4 {[%clk 0:02:27.6]}
22... Bd6 {[%clk 0:01:04.6]} 23. Rc1 {[%clk 0:02:19.8]} 23... Qe7 {[%clk
0:00:49]} 24. Rc6 {[%clk 0:01:55.7]} 24... Bxf4 {[%clk 0:00:46.4]} 25. Nxf4
{[%clk 0:01:56.4]} 25... b3 {[%clk 0:00:39.4]} 26. Nc1 {[%clk 0:01:55.1]} 26...
Rfe8 {[%clk 0:00:36]} 27. Qxd4 {[%clk 0:01:44.3]} 27... Qe1+ {[%clk 0:00:34.5]}
28. Kg2 {[%clk 0:01:44.9]} 28... Qe4+ {[%clk 0:00:16.3]} 29. Qxe4 {[%clk
0:01:45.7]} 29... Rxe4 {[%clk 0:00:15.4]} 30. Nxd5 {[%clk 0:01:42.9]} 30... Rxa4
{[%clk 0:00:14.5]} 31. Nxb3 {[%clk 0:01:30.5]} 31... h6 {[%clk 0:00:10.2]} 32.
Rc2 {[%clk 0:01:12.9]} 32... Rxb3 {[%clk 0:00:09.1]} 33. Rc8+ {[%clk 0:00:51.4]}
33... Kh7 {[%clk 0:00:09.7]} 34. Rc7 {[%clk 0:00:52.4]} 34... Rxb2 {[%clk
0:00:08.2]} 35. Rxf7 {[%clk 0:00:52.6]} 35... Kg6 {[%clk 0:00:09]} 36. Rf8
{[%clk 0:00:50.8]} 36... Raa2 {[%clk 0:00:06.9]} 37. h4 {[%clk 0:00:51]} 37...
h5 {[%clk 0:00:07.6]} 38. Ne7+ {[%clk 0:00:51.4]} 38... Kh7 {[%clk 0:00:08]} 39.
Rf5 {[%clk 0:00:49.4]} 39... g6 {[%clk 0:00:07.5]} 40. Rf7+ {[%clk 0:00:49.9]}
40... Kh8 {[%clk 0:00:02.9]} 41. Nxg6+ {[%clk 0:00:48.3]} 41... Kg8 {[%clk
0:00:04.3]} 42. Rf5 {[%clk 0:00:48.9]} 42... Kg7 {[%clk 0:00:03.9]} 43. Ne5
{[%clk 0:00:47.6]} 43... Ra5 {[%clk 0:00:03.5]} 44. Rxh5 {[%clk 0:00:46.8]}
44... Rbb5 {[%clk 0:00:03.9]} 45. f4 {[%clk 0:00:46.2]} 45... Ra2+ {[%clk
0:00:03.9]} 46. Kh3 {[%clk 0:00:46.7]} 46... Ra6 {[%clk 0:00:05.3]} 47. Rg5+
{[%clk 0:00:45.5]} 47... Kh6 {[%clk 0:00:05.2]} 48. Nf7+ {[%clk 0:00:45.6]}
48... Kh7 {[%clk 0:00:05.8]} 49. Rxb5 {[%clk 0:00:45.8]} 1-0

[Event "*** Titled Tuesday 3|2 Blitz"]
[Site "Chess.com"]
[Date "2015.08.04"]
[Round "5"]
[White "GMG"]
[Black "GMHess"]
[Result "0-1"]
[WhiteElo "2406"]
[BlackElo "2540"]
[TimeControl "180+2"]
[EndTime "12:35:59 PDT"]
[Termination "GMHess won by resignation"]

1. Nf3 {[%clk 0:03:01.9]} 1... c5 {[%clk 0:02:59.7]} 2. c4 {[%clk 0:03:01.8]}
2... Nc6 {[%clk 0:02:59.6]} 3. g3 {[%clk 0:03:02.8]} 3... Nf6 {[%clk 0:02:59.7]}
4. Bg2 {[%clk 0:03:03.9]} 4... e6 {[%clk 0:03:01.1]} 5. O-O {[%clk 0:03:03]}
5... Be7 {[%clk 0:03:02.7]} 6. d4 {[%clk 0:03:03.7]} 6... cxd4 {[%clk
0:03:02.9]} 7. Nxd4 {[%clk 0:03:05.6]} 7... O-O {[%clk 0:03:04.1]} 8. Nc3 {[%clk
0:03:05.8]} 8... a6 {[%clk 0:03:01]} 9. Nb3 {[%clk 0:02:50.8]} 9... d6 {[%clk
0:02:55.5]} 10. Bf4 {[%clk 0:02:50]} 10... Nh5 {[%clk 0:02:37.1]} 11. Be3 {[%clk
0:02:45.9]} 11... Ne5 {[%clk 0:02:37.6]} 12. Qd4 {[%clk 0:02:44.7]} 12... Qc7
{[%clk 0:02:15.8]} 13. c5 {[%clk 0:02:34.6]} 13... dxc5 {[%clk 0:02:09.4]} 14.
Nxc5 {[%clk 0:02:20.6]} 14... Rd8 {[%clk 0:02:03.7]} 15. Qb4 {[%clk 0:02:21.6]}
15... Rb8 {[%clk 0:01:48.2]} 16. Rad1 {[%clk 0:01:21.7]} 16... Rxd1 {[%clk
0:01:32.8]} 17. Rxd1 {[%clk 0:01:12.1]} 17... b6 {[%clk 0:01:31]} 18. Nxa6
{[%clk 0:00:28]} 18... Bxa6 {[%clk 0:01:31.7]} 19. Qa4 {[%clk 0:00:29.6]} 19...
Qc4 {[%clk 0:01:14.1]} 20. f4 {[%clk 0:00:20]} 20... Ng4 {[%clk 0:00:47.1]} 21.
Qxc4 {[%clk 0:00:19.1]} 21... Bxc4 {[%clk 0:00:49]} 22. Bd4 {[%clk 0:00:20.2]}
22... Bc5 {[%clk 0:00:19.3]} 23. b3 {[%clk 0:00:19]} 23... Ne3 {[%clk
0:00:16.4]} 24. Bxe3 {[%clk 0:00:15.8]} 24... Bxe3+ {[%clk 0:00:18.3]} 25. Kf1
{[%clk 0:00:17.4]} 25... Ba6 {[%clk 0:00:16.4]} 26. Bf3 {[%clk 0:00:15.5]} 26...
Nf6 {[%clk 0:00:17.1]} 27. Ne4 {[%clk 0:00:13.8]} 27... Nxe4 {[%clk 0:00:17.5]}
28. Bxe4 {[%clk 0:00:15.7]} 28... f5 {[%clk 0:00:17]} 29. Bd3 {[%clk 0:00:15.2]}
29... Rd8 {[%clk 0:00:16]} 30. a4 {[%clk 0:00:14.8]} 30... Bxd3 {[%clk
0:00:17.3]} 31. exd3 {[%clk 0:00:15.6]} 31... Kf7 {[%clk 0:00:18.1]} 32. Ke2
{[%clk 0:00:16.9]} 32... Bc5 {[%clk 0:00:19.3]} 33. Rc1 {[%clk 0:00:18.2]} 33...
Rd4 {[%clk 0:00:20.7]} 34. Rc3 {[%clk 0:00:18]} 34... Rb4 {[%clk 0:00:21.4]} 35.
Kd2 {[%clk 0:00:18.9]} 35... Bd4 {[%clk 0:00:19.4]} 36. Rc7+ {[%clk 0:00:19.1]}
36... Kf6 {[%clk 0:00:20.4]} 37. Kc2 {[%clk 0:00:20.6]} 37... h6 {[%clk
0:00:18.2]} 38. Rd7 {[%clk 0:00:18.5]} 38... g5 {[%clk 0:00:18.1]} 39. h3 {[%clk
0:00:17.4]} 39... gxf4 {[%clk 0:00:19]} 40. gxf4 {[%clk 0:00:19.3]} 40... Bf2
{[%clk 0:00:17.1]} 41. Kc3 {[%clk 0:00:10.9]} 41... Be1+ {[%clk 0:00:17]} 42.
Kc2 {[%clk 0:00:11.6]} 42... Rxf4 {[%clk 0:00:18.7]} 43. d4 {[%clk 0:00:13]}
43... Rf3 {[%clk 0:00:15.6]} 44. Rd6 {[%clk 0:00:12.6]} 44... Bf2 {[%clk
0:00:10.8]} 45. Rxb6 {[%clk 0:00:12.7]} 45... Bxd4 {[%clk 0:00:11.3]} 46. Rb7
{[%clk 0:00:11.6]} 46... Ke5 {[%clk 0:00:12.2]} 47. a5 {[%clk 0:00:12.8]} 47...
Ke4 {[%clk 0:00:13.7]} 48. a6 {[%clk 0:00:12.3]} 48... Rf2+ {[%clk 0:00:15.1]}
49. Kb1 {[%clk 0:00:10.8]} 49... Kd3 {[%clk 0:00:16]} 50. a7 {[%clk 0:00:11.9]}
50... Rf1+ {[%clk 0:00:16.9]} 0-1

[Event "*** Titled Tuesday 3|2 Blitz"]
[Site "Chess.com"]
[Date "2015.08.04"]
[Round "5"]
[White "VSERGUEI"]
[Black "yurisolo"]
[Result "0-1"]
[WhiteElo "2532"]
[BlackElo "2436"]
[TimeControl "180+2"]
[EndTime "12:36:08 PDT"]
[Termination "yurisolo won on time"]

1. d4 {[%clk 0:02:36.1]} 1... d6 {[%clk 0:03:00.3]} 2. Nf3 {[%clk 0:02:35.2]}
2... g6 {[%clk 0:03:00.2]} 3. c4 {[%clk 0:02:36]} 3... Bg7 {[%clk 0:03:01.5]} 4.
Nc3 {[%clk 0:02:37.1]} 4... Bg4 {[%clk 0:03:02.7]} 5. e3 {[%clk 0:02:37.8]} 5...
c5 {[%clk 0:03:02.8]} 6. dxc5 {[%clk 0:02:36.6]} 6... Bxc3+ {[%clk 0:02:58.5]}
7. bxc3 {[%clk 0:02:37]} 7... dxc5 {[%clk 0:02:59.7]} 8. Qxd8+ {[%clk
0:02:37.2]} 8... Kxd8 {[%clk 0:03:01.6]} 9. Ne5 {[%clk 0:02:29]} 9... Be6 {[%clk
0:03:02]} 10. e4 {[%clk 0:02:29.1]} 10... Nf6 {[%clk 0:02:57.8]} 11. f3 {[%clk
0:02:27.8]} 11... Nbd7 {[%clk 0:02:58.5]} 12. Bf4 {[%clk 0:02:18.3]} 12... Nh5
{[%clk 0:02:35.7]} 13. Nxd7 {[%clk 0:02:18.2]} 13... Kxd7 {[%clk 0:02:37.2]} 14.
Be3 {[%clk 0:02:08.4]} 14... Kc6 {[%clk 0:02:37]} 15. Kf2 {[%clk 0:01:59.1]}
15... Nf6 {[%clk 0:02:37.4]} 16. Be2 {[%clk 0:01:52.1]} 16... Nd7 {[%clk
0:02:10]} 17. Rhd1 {[%clk 0:01:48.3]} 17... Nb6 {[%clk 0:02:09.4]} 18. Rd5
{[%clk 0:01:48.8]} 18... Bxd5 {[%clk 0:01:59.7]} 19. cxd5+ {[%clk 0:01:48.9]}
19... Kd6 {[%clk 0:01:58.5]} 20. a4 {[%clk 0:01:45.1]} 20... Nd7 {[%clk
0:01:55.3]} 21. Rb1 {[%clk 0:01:43.5]} 21... b6 {[%clk 0:01:41.5]} 22. Ba6
{[%clk 0:01:33.8]} 22... e5 {[%clk 0:01:38.7]} 23. dxe6 {[%clk 0:01:24.4]} 23...
Kxe6 {[%clk 0:01:36.7]} 24. Bb7 {[%clk 0:01:23]} 24... Rad8 {[%clk 0:01:28.1]}
25. Bd5+ {[%clk 0:01:17.5]} 25... Ke7 {[%clk 0:01:28.6]} 26. a5 {[%clk
0:01:17.5]} 26... Nf6 {[%clk 0:00:32.9]} 27. Bg5 {[%clk 0:01:09.3]} 27... h6
{[%clk 0:00:32.9]} 28. Bxf6+ {[%clk 0:01:06.6]} 28... Kxf6 {[%clk 0:00:34.8]}
29. axb6 {[%clk 0:01:07.7]} 29... axb6 {[%clk 0:00:36.1]} 30. Rxb6+ {[%clk
0:01:08.5]} 30... Ke7 {[%clk 0:00:33.2]} 31. Rb7+ {[%clk 0:01:03]} 31... Rd7
{[%clk 0:00:34]} 32. Rxd7+ {[%clk 0:01:03.9]} 32... Kxd7 {[%clk 0:00:35.4]} 33.
Bxf7 {[%clk 0:01:05]} 33... g5 {[%clk 0:00:35.2]} 34. Kg3 {[%clk 0:00:46]} 34...
Kd6 {[%clk 0:00:24.1]} 35. Kg4 {[%clk 0:00:43.2]} 35... Ke5 {[%clk 0:00:22.9]}
36. g3 {[%clk 0:00:42.8]} 36... Kf6 {[%clk 0:00:20.9]} 37. Bh5 {[%clk
0:00:39.9]} 37... Rf8 {[%clk 0:00:09.6]} 38. f4 {[%clk 0:00:39.2]} 38... gxf4
{[%clk 0:00:07.7]} 39. gxf4 {[%clk 0:00:39.9]} 39... Rd8 {[%clk 0:00:07.4]} 40.
e5+ {[%clk 0:00:39.7]} 40... Ke6 {[%clk 0:00:07.9]} 41. Bg6 {[%clk 0:00:38.6]}
41... Rd2 {[%clk 0:00:07.2]} 42. h4 {[%clk 0:00:38.8]} 42... Rg2+ {[%clk
0:00:05.9]} 43. Kh5 {[%clk 0:00:37.4]} 43... Rf2 {[%clk 0:00:07.4]} 44. Kg4
{[%clk 0:00:30.1]} 44... Rg2+ {[%clk 0:00:08.6]} 45. Kf3 {[%clk 0:00:28.9]}
45... Rxg6 {[%clk 0:00:09.3]} 0-1